bitfinex/quotes_ETHUSD_20250529
["timestamp","ask_amount","ask_price","bid_price","bid_amount"]
[1748496965319,4.8814149,2725.2,2724.5,3.67029775]
[1748496965523,4.8814149,2725.2,2724.7,3.67011338]
[1748496965713,4.84466499,2725.2,2724.8,3.66991567]
[1748496966307,4.84466499,2725.2,2724.9,3.66983661]
[1748496966753,0.05,2725.9,2725.0,3.66972335]
[1748496966754,0.3709,2725.5,2725.0,3.66972335]
[1748496967046,3.98,2725.4,2725.0,3.66972335]
[1748496967456,0.3709,2725.5,2725.1,3.66948349]
[1748496967609,0.3709,2725.5,2724.8,0.7866]
[1748496967809,0.3709,2725.5,2725.2,3.66938603]
[1748496968746,3.979,2725.6,2725.2,3.66938603]
[1748496969106,3.979,2725.6,2725.1,3.66953223]
[1748496969882,3.979,2725.6,2725.2,3.66943976]
[1748496970163,3.979,2725.6,2725.0,3.66963138]
[1748496970367,3.979,2725.6,2725.1,3.66956014]
[1748496971641,3.979,2725.6,2725.0,3.66972477]
[1748496971870,3.979,2725.6,2725.1,3.6695901]
[1748496973953,4.41399,2725.6,2725.0,3.66966416]
[1748496974359,0.03674991,2725.5,2724.8,0.7866]
[1748496974596,0.40764991,2725.5,2724.8,4.45651035]
[1748496974755,0.3709,2725.5,2724.8,4.45651035]
[1748496975090,0.478489,2725.4,2724.8,4.45651035]
[1748496976291,0.478489,2725.4,2725.0,3.66969739]
[1748496976592,0.478489,2725.4,2724.8,5.56655409]
[1748496977391,0.478489,2725.4,2724.9,3.66985096]
[1748496979485,0.478489,2725.4,2724.8,0.7866]
[1748496980011,0.478489,2725.4,2724.9,3.66983671]
[1748496980394,0.478489,2725.4,2724.8,4.45652003]
[1748496981415,0.478489,2725.4,2724.9,3.66985425]
[1748496981771,0.3709,2725.5,2724.9,3.66985425]
[1748496984117,0.3709,2725.5,2724.6,1.11]
[1748496984407,0.03674991,2725.4,2724.7,3.67005898]
[1748496985274,0.3709,2725.3,2724.6,3.67022951]
[1748496985471,0.03674991,2725.2,2724.6,3.67022951]
[1748496985796,0.03674991,2725.2,2724.6,3.67026352]
[1748496986112,0.03674991,2725.2,2724.7,3.67011409]
[1748496986474,0.3709,2725.3,2724.7,3.67011409]
[1748496987098,0.3709,2725.3,2724.8,3.66997252]
[1748496988314,0.3709,2725.3,2724.9,3.66985541]
[1748496988489,0.3709,2725.3,2724.8,3.66992253]
[1748496988815,0.3709,2725.3,2724.9,3.66983406]
[1748496989410,0.3709,2725.3,2724.8,3.66993706]
[1748496991512,0.3709,2725.3,2724.7,11.67009763]
[1748496991872,0.58674991,2725.2,2724.6,8.0]
[1748496992077,0.3709,2725.1,2724.6,11.67025852]
[1748496992501,0.3709,2725.1,2724.5,11.67035803]
[1748496992896,0.3709,2725.1,2724.6,3.67022882]
[1748496993104,0.3709,2725.1,2724.7,3.67012065]
[1748496993299,0.3709,2725.1,2724.6,3.67016055]
[1748496994016,0.3709,2725.1,2724.7,3.6701153]
[1748496994322,0.3709,2725.1,2724.8,3.66998122]
[1748496995337,0.3709,2725.4,2724.9,3.66980259]
[1748496995485,0.43409,2725.3,2724.9,3.66980259]
[1748496997223,0.3709,2725.4,2724.9,3.66980259]
[1748496998719,0.3709,2725.4,2724.8,3.66992892]
[1748496999987,0.3709,2725.4,2724.6,3.67017085]
[1748497000329,3.969,2725.6,2724.6,3.67025326]
[1748497000330,0.3709,2725.2,2724.6,3.67025326]
[1748497001899,0.3709,2725.2,2724.5,3.67036533]
[1748497002231,0.55,2724.9,2723.8,4.4662415]
[1748497002532,0.3709,2724.5,2723.8,1.103]
[1748497002696,0.3709,2724.3,2723.8,1.103]
[1748497002900,0.03674991,2724.2,2723.8,1.103]
[1748497003085,0.3709,2724.3,2723.8,1.103]
[1748497003284,0.80836499,2724.3,2723.8,1.103]
[1748497003480,0.80836499,2724.3,2723.8,9.103]
[1748497003685,0.80836499,2724.3,2723.8,1.103]
[1748497003885,0.55,2724.2,2723.3,0.8181]
[1748497004125,0.55,2724.2,2723.6,3.67159148]
[1748497004367,0.55,2724.2,2723.7,11.67141004]
[1748497004651,0.55,2724.2,2723.8,3.67127788]
[1748497004865,0.55,2724.2,2723.9,3.67119892]
[1748497005026,0.80836499,2724.3,2723.7,3.67144916]
[1748497005229,0.80836499,2724.3,2723.8,3.67128547]
[1748497007952,0.80836499,2724.3,2723.7,3.67145934]
[1748497008161,0.80836499,2724.3,2723.8,3.67124821]
[1748497009569,0.80836499,2724.3,2723.8,3.67122368]
[1748497010571,0.80836499,2724.3,2723.9,3.67119989]
[1748497010874,0.80836499,2724.3,2723.4,1.103]
[1748497010875,0.3709,2724.3,2723.4,1.103]
[1748497011076,0.3709,2724.6,2723.6,0.8005]
[1748497011252,0.3709,2724.6,2724.3,3.67059302]
[1748497011967,0.3709,2724.6,2724.1,3.67093719]
[1748497012143,0.3709,2724.6,2724.3,3.6706261]
[1748497012555,0.3709,2724.6,2724.0,0.8005]
[1748497012754,0.3709,2724.6,2724.3,3.67065315]
[1748497013160,0.9209,2724.9,2724.5,3.67030464]
[1748497014249,0.9209,2724.9,2724.4,3.67049417]
[1748497014462,0.9209,2724.9,2724.4,3.67041936]
[1748497014693,0.9209,2724.9,2724.5,3.67039327]
[1748497014860,0.9209,2724.9,2724.1,1.103]
[1748497015192,0.9209,2724.9,2724.2,3.67072904]
[1748497015499,0.9209,2724.9,2724.3,3.6705632]
[1748497015663,0.3709,2724.9,2724.4,3.67053231]
[1748497017302,0.1834407,2725.6,2724.4,3.67053231]
[1748497017303,0.3709,2725.7,2724.7,3.67002142]
[1748497017593,0.55,2725.4,2724.7,3.67002142]
[1748497017758,0.3709,2725.5,2724.7,3.67002142]
[1748497018095,3.963,2725.3,2724.7,3.67002142]
[1748497018265,4.45139,2725.3,2724.7,3.67002142]
[1748497018462,0.52513991,2725.3,2724.6,3.6701842]
[1748497018666,0.3709,2725.2,2724.6,3.6701842]
[1748497019879,0.3709,2725.2,2724.5,3.67035759]
[1748497020189,0.55,2725.0,2724.3,3.67057203]
[1748497020348,0.3709,2724.9,2724.3,3.67057203]
[1748497020550,0.3709,2724.9,2724.2,4.48299859]
[1748497020744,0.3709,2724.9,2724.2,0.8123]
[1748497020950,0.3709,2724.9,2724.4,3.67046369]
[1748497022351,0.3709,2724.9,2724.2,1.37092034]
[1748497022550,0.3709,2724.9,2724.5,3.67032835]
[1748497022752,0.3709,2724.9,2724.6,3.6702468]
[1748497023011,0.3709,2724.9,2724.2,1.37092034]
[1748497023012,0.3709,2724.9,2724.7,3.67011806]
[1748497023151,3.961,2725.1,2724.7,3.67011806]
[1748497023469,4.3319,2725.1,2724.6,3.67020893]
[1748497023986,4.3309,2725.1,2724.7,3.67004479]
[1748497024156,0.3709,2725.1,2724.7,3.67004479]
[1748497025407,0.3709,2725.1,2724.6,3.6702118]
[1748497026268,0.3709,2725.1,2724.4,4.45092718]
[1748497026472,0.3709,2725.1,2724.5,0.44509272]
[1748497026791,0.3709,2725.1,2724.6,3.67025162]
[1748497027197,0.3709,2725.1,2724.7,3.67012297]
[1748497027400,0.3709,2725.1,2724.5,0.44509272]
[1748497027602,0.3709,2725.1,2724.4,0.7804]
[1748497028072,0.3709,2725.1,2724.7,3.67002768]
[1748497028763,4.51,2725.3,2724.8,3.66996027]
[1748497028964,0.9209,2725.3,2724.4,4.45091175]
[1748497029159,0.3709,2725.3,2724.9,3.66976721]
[1748497029411,0.3709,2725.3,2724.9,4.03683616]
[1748497029622,0.3709,2725.3,2725.0,3.66969276]
[1748497029785,0.3709,2725.3,2724.5,3.40362499]
[1748497030121,0.3709,2725.3,2724.9,3.66972841]
[1748497030783,0.3709,2725.3,2724.4,0.7804]
[1748497030988,0.03674991,2725.2,2724.6,3.67015037]
[1748497033213,0.03674991,2725.2,2724.7,8.0]
[1748497033908,0.3709,2725.3,2724.6,8.0]
[1748497034089,0.40764991,2725.3,2724.5,8.0]
[1748497034291,0.55,2725.2,2724.5,3.67030317]
[1748497034541,0.9209,2725.2,2724.5,3.67030317]
[1748497034752,0.9209,2725.2,2724.4,3.67052841]
[1748497034916,0.3709,2725.1,2724.5,3.67038218]
[1748497035531,0.40764991,2725.1,2724.5,3.67029754]
[1748497035750,0.3709,2725.1,2724.5,3.67029754]
[1748497037047,0.3709,2725.1,2724.3,3.67060264]
[1748497037208,0.3709,2725.1,2724.4,3.67052668]
[1748497037766,0.3709,2725.1,2724.5,3.67032316]
[1748497038646,0.3709,2725.1,2724.4,3.67048279]
[1748497038859,0.3709,2725.1,2724.2,0.7778]
[1748497039068,0.3709,2725.1,2724.2,12.44851513]
[1748497039279,0.3709,2725.1,2724.4,3.67051793]
[1748497039563,0.3709,2725.1,2724.3,3.67060298]
[1748497039711,0.3709,2725.1,2724.4,3.67051887]
[1748497040113,0.03674991,2725.0,2724.2,12.44851513]
[1748497040366,0.3709,2725.1,2724.2,12.44851513]
[1748497040367,0.55,2725.2,2724.4,3.67046428]
[1748497040561,0.3709,2725.1,2724.4,3.67046428]
[1748497041746,0.3709,2725.1,2724.5,3.67038964]
[1748497042853,0.3709,2725.1,2724.4,3.6704797]
[1748497044418,0.3709,2725.1,2724.3,3.6706268]
[1748497044419,0.3709,2725.1,2724.3,3.67059893]
[1748497044618,3.958,2725.5,2724.3,3.67059893]
[1748497044619,0.9209,2725.0,2724.3,3.67059893]
[1748497044844,0.3709,2724.9,2724.3,3.67059893]
[1748497046218,0.3709,2724.9,2724.4,3.67052841]
[1748497046423,0.3709,2724.9,2724.5,3.6703372]
[1748497046654,0.3709,2724.9,2724.6,3.67023894]
[1748497047458,0.3709,2724.9,2724.5,3.67035837]
[1748497047663,0.3709,2724.9,2724.3,3.67062205]
[1748497047664,0.3709,2724.9,2724.7,3.67005251]
[1748497048163,3.952,2725.1,2724.7,3.67005251]
[1748497048320,4.3229,2725.2,2724.7,3.67005251]
[1748497049954,0.3709,2725.2,2724.7,3.67005251]
[1748497050159,4.3219,2725.2,2724.7,3.67005251]
[1748497050672,0.3709,2725.2,2724.8,3.66991999]
[1748497050847,0.3709,2725.2,2724.9,3.66977244]
[1748497051044,4.3219,2725.4,2724.9,3.66977244]
[1748497051483,4.3219,2725.4,2723.3,1.12304672]
[1748497051484,0.55,2725.3,2723.3,1.12304672]
[1748497051664,0.55,2724.5,2723.3,0.7646]
[1748497051987,0.3709,2724.3,2723.7,3.6714111]
[1748497052143,0.3709,2724.3,2723.7,8.0]
[1748497052485,0.3709,2724.3,2723.7,3.67146759]
[1748497053648,0.3709,2724.3,2723.6,3.6715594]
[1748497053983,0.3709,2724.3,2723.4,0.18616]
[1748497053984,0.80299,2724.3,2723.4,0.18616]
[1748497054192,0.80299,2724.3,2723.7,3.67144556]
[1748497055113,0.80299,2724.3,2723.8,3.67121]
[1748497055276,0.80299,2724.3,2723.6,3.67151388]
[1748497055461,0.80299,2724.3,2723.7,8.0]
[1748497055796,0.475299,2724.2,2723.7,3.67147585]
[1748497057295,0.475299,2724.2,2723.7,3.67143449]
[1748497059701,0.4723761,2724.2,2723.7,3.67143449]
[1748497063800,0.4723761,2724.2,2723.8,0.00531746]
[1748497064301,0.3709,2724.1,2723.8,0.00531746]
[1748497066827,0.3709,2724.1,2723.6,0.00531746]
[1748497067024,0.3709,2724.1,2723.6,3.67691013]
[1748497067323,0.3709,2724.1,2723.6,0.00531746]
[1748497067835,0.36439777,2724.1,2723.6,0.00531746]
[1748497068123,0.84332538,2724.1,2723.6,0.00531746]
[1748497069583,0.55,2724.0,2723.6,0.00531746]
[1748497069783,0.03674991,2723.9,2723.4,0.00531746]
[1748497069983,0.47892761,2724.1,2723.4,0.00531746]
[1748497070184,0.55,2724.0,2723.4,0.00531746]
[1748497070620,0.55,2723.8,2723.4,0.00531746]
[1748497070824,0.3644,2723.7,2723.4,0.00531746]
[1748497072794,0.3644,2723.7,2723.2,0.00531746]
[1748497075804,0.3644,2723.7,2723.2,3.67744256]
[1748497077499,0.3644,2723.7,2723.2,0.00531746]
[1748497077728,0.3644,2723.7,2723.2,3.67746302]
[1748497079632,0.3644,2723.7,2723.2,0.00531746]
[1748497080026,0.3644,2723.7,2723.2,3.67742893]
[1748497080500,0.3644,2723.7,2723.3,3.67201065]
[1748497080701,0.3644,2723.7,2723.2,3.6774019]
[1748497080941,0.3644,2723.7,2723.3,3.67198699]
[1748497081144,0.3644,2723.7,2723.2,0.00531746]
[1748497081348,0.3644,2723.7,2723.2,3.67741309]
[1748497081650,0.3644,2724.0,2723.2,1.19625877]
[1748497081831,2.6282982,2725.0,2724.0,3.67098062]
[1748497081832,0.3644,2724.3,2724.0,3.67098062]
[1748497082033,0.3644,2724.3,2723.8,0.8182]
[1748497082231,0.3644,2724.3,2723.7,3.67136648]
[1748497082440,1.1,2724.1,2723.7,3.67136648]
[1748497082943,1.1,2724.1,2723.8,3.6713415]
[1748497083167,1.1,2724.1,2724.0,3.67107195]
[1748497083327,0.3644,2724.3,2723.9,3.67120004]
[1748497083521,0.3644,2724.3,2724.0,3.6709936]
[1748497084219,0.3644,2724.3,2723.8,4.48129815]
[1748497084420,0.3644,2724.3,2723.7,1.091]
[1748497084650,4.3064,2724.6,2723.7,9.091]
[1748497084855,4.3064,2724.6,2724.0,0.8105]
[1748497084856,0.3644,2724.6,2724.0,0.8105]
[1748497085018,0.3644,2724.8,2724.3,3.67059156]
[1748497085353,0.3644,2724.8,2723.8,0.00531746]
[1748497085354,0.3644,2724.7,2723.9,1.091]
[1748497085555,0.3644,2724.7,2724.1,3.6708319]
[1748497085854,0.40114991,2724.7,2724.1,3.6708319]
[1748497086039,0.95114991,2724.7,2723.9,3.67111869]
[1748497086363,0.95114991,2724.7,2723.8,0.81581746]
[1748497086364,0.3644,2724.6,2724.0,3.67105228]
[1748497086509,0.3644,2724.6,2723.8,1.90681746]
[1748497086707,0.3644,2724.6,2723.9,0.19068175]
[1748497087220,0.3644,2724.6,2724.2,3.67071554]
[1748497087422,1.09521388,2724.4,2724.3,3.6705892]
[1748497087838,1.09521388,2724.4,2724.2,3.67073674]
[1748497088840,1.09521388,2724.4,2724.3,4.48466769]
[1748497089012,1.09521388,2724.4,2724.3,5.30020813]
[1748497090353,1.09521388,2724.4,2724.3,4.48466769]
[1748497090555,1.09521388,2724.4,2724.3,3.67066769]
[1748497091442,1.09115023,2724.4,2724.3,3.67066769]
[1748497092229,3.939,2725.0,2724.3,4.45716769]
[1748497092430,0.3644,2725.1,2724.7,3.67004822]
[1748497092631,0.3644,2725.1,2724.7,3.67006029]
[1748497092948,0.3644,2725.1,2724.6,3.67019576]
[1748497093318,0.3644,2725.1,2724.5,3.67037431]
[1748497095856,0.3644,2725.1,2724.6,3.67024992]
[1748497096035,0.79474,2725.1,2724.6,3.67024992]
[1748497096432,0.3644,2725.8,2725.0,3.66959309]
[1748497096647,3.937,2725.7,2725.0,3.66959309]
[1748497096821,3.937,2725.6,2725.0,3.66959309]
[1748497097156,0.55,2725.5,2725.0,3.66959309]
[1748497097923,0.3644,2725.8,2725.0,3.66965152]
[1748497098123,3.937,2725.7,2725.0,3.66965152]
[1748497098319,4.36714,2725.6,2724.9,3.66982493]
[1748497098578,4.36714,2725.6,2725.0,3.66959125]
[1748497099080,0.43014,2725.6,2725.1,3.66946683]
[1748497099281,0.3644,2725.8,2725.1,3.66946683]
[1748497099282,3.936,2725.5,2725.1,3.66946683]
[1748497099790,3.936,2725.5,2725.1,3.66957873]
[1748497099791,3.9312389,2725.5,2725.1,3.66957873]
[1748497100677,0.3644,2725.8,2725.2,3.66938407]
[1748497100865,0.3644,2725.8,2725.3,3.66921239]
[1748497100866,3.936,2725.7,2725.3,3.66921239]
[1748497101541,3.936,2725.7,2725.2,4.48009265]
[1748497102591,3.936,2725.7,2725.2,3.66939265]
[1748497102994,4.37104,2725.7,2725.0,0.8107]
[1748497103157,0.3644,2725.6,2725.0,1.085]
[1748497103361,0.3644,2725.6,2725.0,4.75471274]
[1748497103556,0.40114991,2725.6,2725.0,1.085]
[1748497103787,0.40114991,2725.6,2724.7,5.51671445]
[1748497103976,0.8783689,2725.6,2724.9,3.66978227]
[1748497104171,0.8783689,2725.6,2724.9,3.66985944]
[1748497104479,0.8783689,2725.6,2725.0,3.66971174]
[1748497104644,0.8783689,2725.6,2725.0,3.66969737]
[1748497104849,0.8783689,2725.6,2724.8,3.66999412]
[1748497105060,4.77561899,2725.6,2725.1,3.66958965]
[1748497105315,4.3484,2725.9,2725.5,3.66905155]
[1748497105856,0.4144,2725.9,2725.5,3.66905155]
[1748497106160,4.3484,2725.9,2725.5,3.66905155]
[1748497107092,4.78324,2725.9,2725.0,3.66966806]
[1748497107396,4.78324,2725.9,2725.5,3.66894283]
[1748497107583,4.77791053,2725.9,2725.5,3.66894283]
[1748497107781,4.77791053,2725.9,2725.6,3.66879171]
[1748497108184,0.84391053,2725.9,2725.6,3.66879171]
[1748497108483,4.34207053,2725.9,2725.6,3.66879171]
[1748497110475,4.34207053,2725.9,2725.5,3.66898343]
[1748497110875,4.34207053,2725.9,2725.6,3.66891063]
[1748497111585,4.33473976,2725.9,2725.6,3.66891063]
[1748497112309,4.33473976,2725.9,2725.6,3.66890375]
[1748497112481,4.76821374,2725.9,2725.6,3.66890375]
[1748497113270,4.76821374,2725.9,2725.1,3.66950017]
[1748497113271,0.7674,2725.8,2725.1,3.66950017]
[1748497113480,0.7674,2725.8,2724.9,8.0]
[1748497113770,0.7674,2725.8,2725.3,3.66925647]
[1748497115015,0.7674,2725.8,2725.5,3.66903788]
[1748497115217,0.7674,2725.8,2725.4,3.66912147]
[1748497115581,0.7674,2725.8,2725.5,3.66904004]
[1748497116817,0.7674,2725.8,2725.4,3.6691448]
[1748497116977,4.6974,2725.8,2725.5,3.66904359]
[1748497117919,4.6974,2725.8,2725.4,3.66911438]
[1748497118575,4.6974,2725.8,2725.5,3.66904441]
[1748497119984,0.03733976,2725.9,2725.2,0.7703]
[1748497120176,3.929,2725.8,2725.6,3.66884822]
[1748497120380,3.929,2725.8,2725.2,0.7703]
[1748497120381,3.929,2725.8,2725.4,3.66913433]
[1748497120812,3.929,2725.8,2725.3,3.66928201]
[1748497121024,0.7931,2725.7,2725.0,0.7617]
[1748497121382,0.7931,2725.7,2725.3,3.66932068]
[1748497121587,0.7931,2725.7,2725.3,3.6693208]
[1748497122109,0.7931,2725.7,2725.2,3.66939092]
[1748497122930,0.7931,2725.7,2725.3,3.66931914]
[1748497123085,0.5198044,2725.6,2725.3,3.66931914]
[1748497123420,0.51295494,2725.6,2725.2,3.66939835]
[1748497123730,0.51295494,2725.6,2725.2,3.66943584]
[1748497124227,0.51295494,2725.6,2725.2,3.66935551]
[1748497124410,0.51295494,2725.6,2725.3,3.66929978]
[1748497125722,0.51295494,2725.6,2725.4,3.66917639]
[1748497125915,0.8042,2725.5,2725.2,3.6694485]
[1748497126426,0.8042,2725.5,2725.3,3.66929908]
[1748497127099,0.8042,2725.5,2725.3,3.66924351]
[1748497127518,0.8042,2725.5,2725.2,3.66939207]
[1748497128027,1.17137858,2725.5,2725.0,3.66965504]
[1748497128230,1.17137858,2725.5,2725.1,3.66956515]
[1748497128602,1.17137858,2725.5,2725.2,3.66944684]
[1748497128785,1.17137858,2725.5,2725.2,3.66939121]
[1748497129014,1.17137858,2725.5,2724.8,1.08]
[1748497129221,0.8042,2725.5,2724.8,6.46796488]
[1748497129534,0.03733976,2725.9,2724.8,6.46794756]
[1748497129705,0.03733976,2725.9,2725.5,3.66895551]
[1748497130033,0.8133,2725.8,2725.5,3.66895551]
[1748497130238,1.29096398,2725.8,2725.5,3.66895551]
[1748497131039,1.29096398,2725.8,2725.6,3.66879587]
[1748497131241,1.29096398,2725.8,2725.3,8.0]
[1748497131242,0.8133,2725.8,2725.3,8.0]
[1748497131402,3.96233976,2725.9,2725.0,0.8168]
[1748497131403,0.03733976,2725.9,2725.0,0.8168]
[1748497131607,0.03733976,2725.9,2725.7,3.66876999]
[1748497131789,0.51337374,2725.9,2725.1,8.0]
[1748497131996,0.03733976,2725.9,2725.6,3.66883348]
[1748497133027,0.03733976,2725.9,2725.1,3.66958599]
[1748497133028,0.7893,2725.7,2725.1,3.66958599]
[1748497133727,0.7893,2725.7,2724.9,3.6698015]
[1748497133912,0.03674991,2725.6,2724.7,0.8058]
[1748497134114,0.7879,2725.4,2724.6,3.67018252]
[1748497134314,0.7879,2725.4,2724.3,4.75060675]
[1748497134315,0.7879,2725.2,2724.3,4.75060675]
[1748497134531,4.475,2725.3,2724.3,4.75060675]
[1748497134532,0.7879,2725.0,2724.4,3.67053006]
[1748497135533,0.7879,2725.0,2724.5,3.6703749]
[1748497135534,0.7805272,2725.0,2724.5,3.6703749]
[1748497136231,0.7805272,2725.0,2724.4,3.67047583]
[1748497136634,0.7805272,2725.0,2724.3,9.08]
[1748497136930,0.7805272,2725.0,2724.2,3.67605419]
[1748497136931,0.18568172,2724.9,2724.2,3.67605419]
[1748497138112,0.18568172,2724.9,2724.2,3.67599088]
[1748497138427,0.8239,2724.8,2724.2,3.67599088]
[1748497138831,0.8239,2724.8,2724.2,0.00531746]
[1748497139395,0.8239,2724.8,2724.2,3.67611568]
[1748497140464,0.8239,2724.8,2724.2,0.00531746]
[1748497141929,3.923,2724.7,2724.2,0.00531746]
[1748497142135,0.47469,2724.6,2724.2,0.00531746]
[1748497142998,0.47469,2724.6,2724.2,3.67607157]
[1748497143324,4.7469,2724.8,2724.3,3.67060432]
[1748497143622,0.8239,2724.8,2724.3,3.67060432]
[1748497143768,11.74702114,2725.9,2724.2,0.00531746]
[1748497143769,4.705,2725.0,2724.2,0.00531746]
[1748497143967,4.705,2725.0,2724.2,3.67601145]
[1748497144192,4.705,2725.0,2724.3,3.67058492]
[1748497145108,4.705,2725.0,2724.4,3.67052242]
[1748497147395,4.70050908,2725.0,2724.4,3.67052242]
[1748497149717,4.70050908,2725.0,2724.3,3.67060385]
[1748497149871,5.17055999,2725.0,2724.3,3.67060385]
[1748497151000,5.17055999,2725.0,2724.0,1.79420056]
[1748497151223,5.17055999,2725.0,2724.1,8.0]
[1748497151698,5.17055999,2725.0,2724.3,3.67057308]
[1748497151900,5.17055999,2725.0,2724.2,3.67076701]
[1748497152096,0.517056,2724.9,2724.3,3.67053556]
[1748497152541,0.517056,2724.9,2724.4,3.67045317]
[1748497152700,0.517056,2724.9,2724.5,3.67035438]
[1748497153845,0.517056,2724.9,2724.4,3.67041204]
[1748497154023,0.517056,2724.9,2724.3,3.67061621]
[1748497154228,0.517056,2724.9,2724.4,3.67042906]
[1748497154838,0.517056,2724.9,2724.3,4.45442734]
[1748497155137,0.52155651,2724.8,2724.3,3.67062734]
[1748497155339,0.7921,2724.7,2724.3,3.67062734]
[1748497156199,0.7921,2724.7,2724.4,3.67040048]
[1748497156399,0.7595,2725.5,2724.4,0.73411161]
[1748497156600,3.92,2725.4,2724.7,3.67006564]
[1748497156799,0.7595,2725.3,2724.7,3.67006564]
[1748497157040,0.7595,2725.3,2724.4,3.67053296]
[1748497157200,0.7595,2725.3,2724.8,3.66988186]
[1748497157800,0.7595,2725.3,2725.1,3.66957777]
[1748497158005,3.919,2725.6,2725.1,3.66957777]
[1748497158201,0.3919,2725.5,2725.1,3.66957777]
[1748497158717,0.3919,2725.5,2725.0,3.66967507]
[1748497159045,0.8014,2725.4,2725.0,3.66967507]
[1748497159340,0.8014,2725.4,2725.1,3.66948392]
[1748497159740,0.8014,2725.4,2725.0,3.66963852]
[1748497161936,0.7606,2725.8,2724.8,4.47129412]
[1748497162110,3.918,2725.7,2725.3,3.66929241]
[1748497162435,4.6786,2725.8,2725.3,3.66929241]
[1748497163215,4.67204373,2725.8,2725.3,3.66929241]
[1748497163507,4.67204373,2725.8,2725.3,3.66929007]
[1748497163938,4.67104373,2725.8,2725.4,3.66913526]
[1748497164122,3.95433976,2725.9,2725.5,3.66904251]
[1748497164323,0.03733976,2725.9,2725.5,3.66904251]
[1748497164724,0.55,2725.8,2725.2,1.075]
[1748497165245,0.55,2725.8,2725.3,3.66928428]
[1748497165450,0.03733976,2725.9,2725.5,3.66903557]
[1748497165746,0.03733976,2725.9,2725.3,0.8232]
[1748497165747,0.03733976,2725.9,2725.6,3.66891579]
[1748497166051,0.03733976,2725.9,2725.4,3.66913688]
[1748497166052,0.03733976,2725.9,2725.8,3.66864773]
[1748497166266,0.03733976,2725.9,2725.8,4.0355125]
[1748497166636,0.03733976,2725.9,2725.8,5.1105125]
[1748497167267,0.03046529,2725.9,2725.8,5.1105125]
[1748497171371,0.03046529,2725.9,2725.8,13.1105125]
[1748497171581,0.03046529,2725.9,2725.8,15.72181306]
[1748497174681,0.03046529,2725.9,2725.8,13.9276125]
[1748497176093,0.03046529,2725.9,2725.8,13.9266125]
[1748497176695,0.03046529,2725.9,2725.8,12.8526125]
[1748497176860,0.03046529,2725.9,2725.8,13.9266125]
[1748497178704,0.03046529,2725.9,2725.8,13.1095125]
[1748497179197,0.02483663,2725.9,2725.8,13.1095125]
[1748497180878,0.01870264,2725.9,2725.8,13.1095125]
[1748497185092,0.05,2726.9,2726.8,3.66730233]
[1748497185289,0.05,2726.9,2726.7,3.66733723]
[1748497185511,0.05,2726.9,2726.6,3.66751369]
[1748497185737,0.8203,2726.8,2726.6,3.66751369]
[1748497186830,0.05,2726.9,2726.8,3.66730233]
[1748497187148,0.05,2726.9,2726.7,3.66740907]
[1748497187149,0.04499974,2726.9,2726.7,3.66740907]
[1748497187311,0.04499974,2726.9,2726.6,3.6675576]
[1748497187516,0.04499974,2726.9,2726.7,3.66743682]
[1748497188128,0.04499974,2726.9,2726.8,3.66730233]
[1748497191049,0.03923199,2726.9,2726.8,3.66730233]
[1748497194352,0.03923199,2726.9,2726.8,4.40077517]
[1748497198426,0.03923199,2726.9,2726.8,12.40077517]
[1748497198745,0.03923199,2726.9,2726.8,14.97547573]
[1748497205018,0.34180669,2728.4,2726.8,14.97547573]
[1748497205019,0.8178,2728.5,2727.8,4.44775791]
[1748497205299,0.8178,2728.5,2727.8,13.51675791]
[1748497205476,0.8178,2728.5,2727.8,15.41446213]
[1748497206144,0.8205,2728.7,2727.8,15.41446213]
[1748497206380,0.8205,2728.7,2727.8,17.20866269]
[1748497207070,0.04228298,2727.9,2727.8,17.20866269]
[1748497208247,0.04228298,2727.9,2727.8,16.13966269]
[1748497208456,0.04228298,2727.9,2727.8,17.20866269]
[1748497209686,0.8205,2728.7,2728.6,3.66488309]
[1748497210678,0.8205,2728.7,2728.5,3.66499102]
[1748497211499,0.8205,2728.7,2728.1,8.0]
[1748497211665,0.8205,2728.7,2728.5,3.66493995]
[1748497211998,0.8205,2728.7,2728.2,3.66533644]
[1748497212597,0.8205,2728.7,2728.1,9.069]
[1748497212897,0.8205,2728.7,2728.2,3.66529225]
[1748497213111,0.8205,2728.7,2728.1,4.73452326]
[1748497213966,0.8205,2728.7,2728.2,3.66539198]
[1748497215413,0.8252,2728.5,2727.3,1.30928543]
[1748497215628,0.8252,2728.5,2727.5,3.66636113]
[1748497215788,0.8252,2728.3,2727.5,8.0]
[1748497216110,0.8252,2728.2,2727.6,3.66619401]
[1748497216412,0.8252,2728.2,2727.7,3.66608752]
[1748497216706,1.29762,2728.2,2727.7,3.66608752]
[1748497217510,1.29762,2728.2,2727.7,3.66603191]
[1748497219111,1.29762,2728.2,2727.8,3.66587602]
[1748497219318,1.29762,2728.2,2727.2,1.064]
[1748497219617,0.8252,2728.2,2727.7,3.6660258]
[1748497220070,0.8252,2728.2,2727.8,3.6658999]
[1748497221114,0.8252,2728.2,2727.9,3.66575289]
[1748497221409,0.8252,2728.2,2727.8,3.6659399]
[1748497221875,0.8252,2728.2,2727.9,3.66581431]
[1748497222477,0.8252,2728.2,2727.8,3.66588856]
[1748497222880,0.8252,2728.2,2727.7,3.66605127]
[1748497223618,0.8252,2728.2,2727.9,3.66582318]
[1748497224579,0.8252,2728.2,2727.7,3.66609231]
[1748497224798,0.8252,2728.2,2727.9,3.66571798]
[1748497225136,0.8252,2728.2,2727.8,3.66588896]
[1748497225680,0.8252,2728.2,2727.8,3.66592844]
[1748497226182,0.8252,2728.2,2727.9,3.66579903]
[1748497226727,0.8252,2728.2,2727.8,3.66590605]
[1748497227197,0.8252,2728.2,2727.9,3.66580372]
[1748497227385,0.05,2728.9,2727.9,0.73318772]
[1748497227386,0.7782,2728.4,2727.9,0.73318772]
[1748497227583,0.7782,2728.4,2728.1,3.66552983]
[1748497229596,0.7782,2728.4,2728.1,3.6654724]
[1748497229935,0.7782,2728.4,2727.7,9.064]
[1748497230085,0.7782,2728.4,2727.7,12.73001508]
[1748497230522,0.7782,2728.4,2727.7,11.66601508]
[1748497230727,0.55,2728.1,2726.8,0.73347284]
[1748497230939,8.0,2728.6,2726.7,1.8429]
[1748497230940,0.7782,2727.8,2726.7,1.8429]